bitfinex/quotes_BTCUSD_20250614
["timestamp","ask_amount","ask_price","bid_price","bid_amount"]
[1749921107500,0.27045938,104760.0,104750.0,0.30096118]
[1749921107929,0.30000455,104760.0,104750.0,0.30096118]
[1749921108361,0.30000256,104760.0,104750.0,0.30096118]
[1749921109244,0.3000031,104760.0,104750.0,0.30096118]
[1749921110740,0.30000247,104760.0,104750.0,0.30096118]
[1749921110953,0.09511391,104760.0,104750.0,0.30096118]
[1749921111382,0.07665125,104760.0,104750.0,0.30096118]
[1749921111599,0.11485808,104760.0,104750.0,0.30096118]
[1749921112950,0.11485785,104760.0,104750.0,0.30096118]
[1749921113802,0.30577041,104760.0,104750.0,0.29141528]
[1749921114461,0.29622512,104760.0,104750.0,0.29141528]
[1749921114677,0.2675888,104760.0,104750.0,0.19522]
[1749921114892,0.32058542,104760.0,104750.0,0.19522]
[1749921115105,0.32058541,104760.0,104750.0,0.19522]
[1749921115311,0.32058538,104760.0,104750.0,0.19522]
[1749921115562,0.26758884,104760.0,104750.0,0.23776653]
[1749921115788,0.26758884,104760.0,104750.0,0.22822]
[1749921116186,0.26758942,104760.0,104750.0,0.22822]
[1749921117261,0.26759122,104760.0,104750.0,0.0651]
[1749921117508,0.26759122,104760.0,104750.0,0.22822]
[1749921117978,0.07687162,104760.0,104750.0,0.22822]
[1749921118222,0.10660257,104760.0,104750.0,0.0321]
[1749921118456,0.10827544,104760.0,104750.0,0.0321]
[1749921118914,0.07687544,104760.0,104750.0,0.0321]
[1749921122077,0.1153112,104760.0,104750.0,0.23257731]
[1749921123329,0.115313,104760.0,104750.0,0.23257731]
[1749921123570,0.115313,104760.0,104750.0,0.0321]
[1749921124801,0.11531295,104760.0,104750.0,0.04164653]
[1749921125010,0.11531295,104760.0,104750.0,0.0321]
[1749921125653,0.11531295,104760.0,104750.0,0.04164653]
[1749921125875,0.13092998,104760.0,104750.0,0.0321]
[1749921126099,0.16092998,104760.0,104750.0,0.0321]
[1749921127206,0.13092998,104760.0,104750.0,0.0321]
[1749921129131,0.13092907,104760.0,104750.0,0.0321]
[1749921130315,0.21091256,104760.0,104750.0,0.0321]
[1749921130528,0.27292311,104760.0,104750.0,0.0321]
[1749921131421,0.45534334,104760.0,104750.0,0.0321]
[1749921131650,0.47818892,104760.0,104750.0,0.0321]
[1749921131872,0.67818892,104760.0,104750.0,0.0321]
[1749921134025,0.58307837,104760.0,104750.0,0.0321]
[1749921137816,0.39262399,104760.0,104750.0,0.25523078]
[1749921138024,0.36977841,104760.0,104750.0,0.0643]
[1749921140436,0.36977841,104760.0,104750.0,0.0321]
[1749921142378,0.3787097,104760.0,104750.0,0.0321]
[1749921142617,0.42710575,104760.0,104750.0,0.0321]
[1749921142829,0.44995132,104760.0,104750.0,0.0321]
[1749921143043,0.40155527,104760.0,104750.0,0.0321]
[1749921143249,0.37870969,104760.0,104750.0,0.0648]
[1749921143931,0.37870945,104760.0,104750.0,0.0648]
[1749921144771,0.40155551,104760.0,104750.0,0.0648]
[1749921145201,0.40155551,104760.0,104750.0,0.0321]
[1749921145418,0.40155541,104760.0,104750.0,0.0321]
[1749921146063,0.49770477,104760.0,104750.0,0.0321]
[1749921147162,0.83770477,104760.0,104750.0,0.0321]
[1749921147383,0.87294541,104760.0,104750.0,0.0321]
[1749921147638,0.01909571,104730.0,104720.0,0.26660342]
[1749921147848,0.03757631,104730.0,104720.0,0.46763867]
[1749921148059,0.22854355,104730.0,104720.0,0.35775004]
[1749921148281,0.22854317,104730.0,104720.0,0.34820151]
[1749921148513,0.22854317,104730.0,104720.0,0.36729904]
[1749921148736,0.03757593,104730.0,104720.0,0.37684767]
[1749921148953,0.23809153,104730.0,104720.0,0.35775032]
[1749921149166,0.23809153,104730.0,104720.0,0.35975032]
[1749921149585,0.23809153,104730.0,104720.0,0.35020151]
[1749921149794,0.23809153,104730.0,104720.0,0.34065251]
[1749921150012,0.22854381,104730.0,104720.0,0.34065251]
[1749921150233,0.26418541,104730.0,104720.0,0.26603466]
[1749921150647,0.25463714,104730.0,104720.0,0.0655]
[1749921150894,0.25463704,104730.0,104720.0,0.26603457]
[1749921151137,0.25463704,104730.0,104720.0,0.26603466]
[1749921151606,0.24570519,104730.0,104720.0,0.26603466]
[1749921152057,0.24570519,104730.0,104720.0,0.27558375]
[1749921152285,0.24570519,104730.0,104720.0,0.28513256]
[1749921152286,0.25525327,104730.0,104720.0,0.28513256]
[1749921152738,0.21006368,104730.0,104720.0,0.28513256]
[1749921153406,0.21006368,104730.0,104720.0,0.27558375]
[1749921153625,0.21006368,104730.0,104720.0,0.28513265]
[1749921153850,0.01909644,104730.0,104720.0,0.29468137]
[1749921154361,0.02864407,104730.0,104720.0,0.30423]
[1749921154594,0.03819234,104730.0,104720.0,0.30423]
[1749921154816,0.01909535,104730.0,104720.0,0.30423]
[1749921155242,0.02864334,104730.0,104720.0,0.30423]
[1749921157221,0.03819152,104730.0,104720.0,0.30423]
[1749921157423,0.02864334,104730.0,104720.0,0.30423]
[1749921158134,0.01909535,104730.0,104720.0,0.30423]
[1749921159386,0.02864325,104730.0,104720.0,0.30423]
[1749921161300,0.01909535,104730.0,104720.0,0.30423]
[1749921161916,0.02864334,104730.0,104720.0,0.30423]
[1749921162296,0.58157079,104730.0,104720.0,0.0348]
[1749921162502,0.58093153,104730.0,104720.0,0.0348]
[1749921162717,0.58093113,104730.0,104720.0,0.0348]
[1749921163028,0.60374685,104730.0,104720.0,0.0348]
[1749921163250,0.60374685,104730.0,104720.0,0.0338]
[1749921163684,0.60574685,104730.0,104720.0,0.0318]
[1749921163886,0.58478664,104730.0,104720.0,0.0318]
[1749921164015,0.58278664,104730.0,104720.0,0.0318]
[1749921164212,0.58278656,104730.0,104720.0,0.0318]
[1749921164804,0.58278009,104730.0,104720.0,0.0318]
[1749921165426,0.58478009,104730.0,104720.0,0.0318]
[1749921165615,0.55306341,104730.0,104720.0,0.0318]
[1749921165871,0.56196588,104730.0,104720.0,0.0318]
[1749921167573,0.56196589,104730.0,104720.0,0.0318]
[1749921168111,0.58476917,104730.0,104720.0,0.0318]
[1749921168531,0.58476912,104730.0,104720.0,0.0318]
[1749921170125,0.58476914,104730.0,104720.0,0.0318]
[1749921171503,0.58476847,104730.0,104720.0,0.0318]
[1749921172692,0.57586669,104730.0,104720.0,0.0318]
[1749921172903,0.56196534,104730.0,104720.0,0.0318]
[1749921173377,0.56196534,104730.0,104720.0,0.28393256]
[1749921173588,0.56196534,104730.0,104720.0,0.28393275]
[1749921173991,0.55241735,104730.0,104720.0,0.28393275]
[1749921174446,0.55241752,104730.0,104720.0,0.28393275]
[1749921174983,0.55243134,104730.0,104720.0,0.29348165]
[1749921175396,0.36146382,104730.0,104720.0,0.30302982]
[1749921175669,0.38055963,104730.0,104720.0,0.30302982]
[1749921175861,0.21008347,104720.0,104710.0,0.0649]
[1749921176199,0.21008347,104720.0,104710.0,0.27500399]
[1749921176449,0.20053457,104720.0,104710.0,0.27500399]
[1749921176648,0.22957192,104720.0,104710.0,0.27500399]
[1749921177057,0.22002283,104720.0,104710.0,0.07445018]
[1749921177295,0.22002283,104720.0,104710.0,0.06537757]
[1749921177415,0.56002283,104720.0,104710.0,0.03467757]
[1749921177621,0.59176004,104720.0,104710.0,0.03467757]
[1749921178036,0.67965694,104720.0,104710.0,0.03467757]
[1749921178267,0.68065694,104720.0,104710.0,0.03467757]
[1749921178460,0.6806565,104720.0,104710.0,0.03467757]
[1749921179761,0.68065649,104720.0,104710.0,0.03467757]
[1749921180175,0.68065648,104720.0,104710.0,0.03467757]
[1749921180388,0.59275958,104720.0,104710.0,0.03467757]
[1749921180826,0.5927596,104720.0,104710.0,0.03467757]
[1749921181234,0.59275593,104720.0,104710.0,0.03467757]
[1749921182709,0.61275593,104720.0,104710.0,0.03467757]
[1749921183095,0.60384447,104720.0,104710.0,0.03467757]
[1749921183314,0.61275502,104720.0,104710.0,0.03467757]
[1749921183513,0.70489037,104720.0,104710.0,0.03467757]
[1749921183945,0.61275482,104720.0,104710.0,0.03467757]
[1749921185015,0.61275464,104720.0,104710.0,0.03467757]
[1749921186052,0.61275457,104720.0,104710.0,0.03467757]
[1749921186270,0.40759383,104720.0,104710.0,0.28743074]
[1749921186488,0.40759381,104720.0,104710.0,0.29698047]
[1749921186696,0.341,104720.0,104710.0,0.29698047]
[1749921186912,0.001,104720.0,104710.0,0.29698047]
[1749921187120,0.01054845,104720.0,104710.0,0.29698047]
[1749921187328,0.001,104720.0,104710.0,0.29698047]
[1749921187749,0.01054845,104720.0,104710.0,0.29698047]
[1749921187958,0.001,104720.0,104710.0,0.29698047]
[1749921188165,0.001,104720.0,104710.0,0.45954047]
[1749921190226,0.01054854,104720.0,104710.0,0.45954047]
[1749921190933,0.001,104720.0,104710.0,0.45954047]
[1749921192485,0.01054845,104720.0,104710.0,0.45954047]
[1749921192696,0.001,104720.0,104710.0,0.45954047]
[1749921193578,0.001,104720.0,104710.0,0.55578223]
[1749921200471,0.001,104720.0,104710.0,1.23341333]
[1749921201065,0.001,104720.0,104710.0,0.55578223]
[1749921201306,0.001,104720.0,104710.0,1.23341333]
[1749921202690,0.33269512,104750.0,104740.0,0.28329025]
[1749921202891,0.33269512,104750.0,104740.0,0.44569025]
[1749921203294,0.33269503,104750.0,104740.0,0.44569025]
[1749921203724,0.21674868,104750.0,104740.0,0.44569025]
[1749921203962,0.2072026,104750.0,104740.0,0.44569025]
[1749921204180,0.21874859,104750.0,104740.0,0.44569025]
[1749921204610,0.23984102,104750.0,104740.0,0.44569025]
[1749921205471,0.23984175,104750.0,104740.0,0.44569025]
[1749921211510,0.02515463,104750.0,104740.0,0.44569025]
[1749921211720,0.22563194,104750.0,104740.0,0.44569025]
[1749921212327,0.03470116,104750.0,104740.0,0.44569025]
[1749921212573,0.04424715,104750.0,104740.0,0.44569025]
[1749921213360,0.03470062,104750.0,104740.0,0.44569025]
[1749921215235,0.26931435,104760.0,104750.0,0.0324]
[1749921215429,0.26041252,104760.0,104750.0,0.0324]
[1749921216147,0.26931435,104760.0,104750.0,0.0324]
[1749921216347,0.26931721,104760.0,104750.0,0.0324]
[1749921216730,0.27131721,104760.0,104750.0,0.0324]
[1749921216937,0.27131721,104760.0,104740.0,0.42413697]
[1749921217756,0.26931721,104760.0,104740.0,0.42413697]
[1749921217953,0.01909207,104750.0,104740.0,0.42413697]
[1749921218155,0.03754311,104750.0,104740.0,0.42413697]
[1749921218546,0.03755747,104750.0,104740.0,0.42413697]
[1749921219854,0.03755747,104750.0,104740.0,0.45733697]
[1749921221815,0.03755746,104750.0,104740.0,0.45733697]
[1749921224518,0.02801074,104750.0,104740.0,0.45733697]
[1749921224719,0.02801391,104750.0,104740.0,0.45733697]
[1749921224924,0.0190917,104750.0,104740.0,0.45733697]
[1749921225137,0.02801392,104750.0,104740.0,0.45733697]
[1749921225351,0.0190917,104750.0,104740.0,0.45733697]
[1749921225562,0.02801392,104750.0,104740.0,0.45733697]
[1749921226328,0.02802273,104750.0,104740.0,0.45733697]
[1749921227162,0.02802274,104750.0,104740.0,0.45733697]
[1749921227708,0.36802274,104750.0,104740.0,0.45733697]
[1749921227868,0.3590917,104750.0,104740.0,0.45733697]
[1749921228079,0.36802274,104750.0,104740.0,0.45733697]
[1749921228491,0.36802297,104750.0,104740.0,0.45733697]
[1749921228919,0.368023,104750.0,104740.0,0.45733697]
[1749921230390,0.35847701,104750.0,104740.0,0.45733697]
[1749921230609,0.36802298,104750.0,104740.0,0.45733697]
[1749921231512,0.36802305,104750.0,104740.0,0.45733697]
[1749921232857,0.36802306,104750.0,104740.0,0.45733697]
[1749921233085,0.3590917,104750.0,104740.0,0.45733697]
[1749921233307,0.36802306,104750.0,104740.0,0.45733697]
[1749921235343,0.3680232,104750.0,104740.0,0.45733697]
[1749921235529,0.36802311,104750.0,104740.0,0.45733697]
[1749921237282,0.35847742,104750.0,104740.0,0.45733697]
[1749921237498,0.00893171,104750.0,104740.0,0.45733697]
[1749921238368,0.05858937,104760.0,104750.0,0.21956929]
[1749921238595,0.0675223,104760.0,104750.0,0.28456929]
[1749921239232,0.086613,104760.0,104750.0,0.41376929]
[1749921239453,0.0675223,104760.0,104750.0,0.41376929]
[1749921240327,0.07706765,104760.0,104750.0,0.41376929]
[1749921240751,0.0675223,104760.0,104750.0,0.41376929]
[1749921240973,0.07706765,104760.0,104750.0,0.41376929]
[1749921241224,0.0675223,104760.0,104750.0,0.41376929]
[1749921241723,0.07706756,104760.0,104750.0,0.41376929]
[1749921241928,0.05797713,104760.0,104750.0,0.41376929]
[1749921242132,0.07706765,104760.0,104750.0,0.41376929]
[1749921242792,0.27752819,104760.0,104750.0,0.25176947]
[1749921243240,0.09616098,104760.0,104750.0,0.42327537]
[1749921243276,0.28707417,104760.0,104750.0,0.42327546]
[1749921243505,0.08661599,104760.0,104750.0,0.43282136]
[1749921243921,0.07707046,104760.0,104750.0,0.43282136]
[1749921244748,0.07707055,104760.0,104750.0,0.43282136]
[1749921245402,0.26798311,104760.0,104750.0,0.42327546]
[1749921245855,0.07707055,104760.0,104750.0,0.42327546]
[1749921246284,0.27752873,104760.0,104750.0,0.41372947]
[1749921246492,0.27752873,104760.0,104750.0,0.40418339]
[1749921246700,0.26798356,104760.0,104750.0,0.40418339]
[1749921246902,0.26798356,104760.0,104750.0,0.41372947]
[1749921248332,0.26798356,104760.0,104750.0,0.42327546]
[1749921248617,0.26798356,104760.0,104750.0,0.42323199]
[1749921248821,0.26798356,104760.0,104750.0,0.3945364]
[1749921249023,0.26798356,104760.0,104750.0,0.41362901]
[1749921249233,0.25843821,104760.0,104750.0,0.41362901]
[1749921249452,0.25843785,104760.0,104750.0,0.41362901]
[1749921249662,0.26797132,104760.0,104750.0,0.42317509]
[1749921249870,0.25904818,104760.0,104750.0,0.42317509]
[1749921250073,0.26797145,104760.0,104750.0,0.42317509]
[1749921250277,0.26797145,104760.0,104750.0,0.43272108]
[1749921251110,0.06751327,104760.0,104750.0,0.43282136]
[1749921251313,0.00954599,104750.0,104740.0,0.26249564]
[1749921251531,0.00892321,104750.0,104740.0,0.43392254]
[1749921252138,0.01846938,104750.0,104740.0,0.43392254]
[1749921252341,0.01847078,104750.0,104740.0,0.27204254]
[1749921252549,0.03756267,104750.0,104740.0,0.43388254]
[1749921252758,0.03756267,104750.0,104740.0,0.43588254]
[1749921252969,0.03756251,104750.0,104740.0,0.43588254]
[1749921253178,0.04710875,104750.0,104740.0,0.43588254]
[1749921253386,0.04710866,104750.0,104740.0,0.43588254]
[1749921253593,0.04710818,104750.0,104740.0,0.43588254]
[1749921254204,0.03756201,104750.0,104740.0,0.43588254]
[1749921254432,0.03756189,104750.0,104740.0,0.43588254]
[1749921254849,0.04710806,104750.0,104740.0,0.43588254]
[1749921256304,0.04710955,104750.0,104740.0,0.43588254]
[1749921256779,0.03818405,104750.0,104740.0,0.43588254]
[1749921257105,0.04710956,104750.0,104740.0,0.44538989]
[1749921258333,0.04710945,104750.0,104740.0,0.44538989]
[1749921258540,0.04710954,104750.0,104740.0,0.44538989]
[1749921258755,0.04710963,104750.0,104740.0,0.44538989]
[1749921258988,0.05665607,104750.0,104740.0,0.28358989]
[1749921259203,0.04711008,104750.0,104740.0,0.45493752]
[1749921259417,0.03756373,104750.0,104740.0,0.44539071]
[1749921259638,0.23804086,104750.0,104740.0,0.4549377]
[1749921260061,0.23804086,104750.0,104740.0,0.4644846]
[1749921260701,0.04711008,104750.0,104740.0,0.46448396]
[1749921261139,0.05665652,104750.0,104740.0,0.46448396]
[1749921261354,0.05665743,104750.0,104740.0,0.46448396]
[1749921261563,0.05665752,104750.0,104740.0,0.46444396]
[1749921261998,0.05665754,104750.0,104740.0,0.46444396]
[1749921262665,0.24758832,104750.0,104740.0,0.46444396]
[1749921262878,0.24758818,104750.0,104740.0,0.46444396]
[1749921263288,0.0566574,104750.0,104740.0,0.46444396]
[1749921263520,0.0566575,104750.0,104740.0,0.46444396]
[1749921263934,0.04773112,104750.0,104740.0,0.46444396]
[1749921264140,0.05665902,104750.0,104740.0,0.46444396]
[1749921265284,0.05665945,104750.0,104740.0,0.46444396]
[1749921265689,0.05665961,104750.0,104740.0,0.46444396]
[1749921266541,0.05666211,104750.0,104740.0,0.46444396]
[1749921266743,0.22850109,104750.0,104740.0,0.27404381]
[1749921266944,0.22850109,104750.0,104740.0,0.4453108]
[1749921267152,0.2195701,104750.0,104740.0,0.28359107]
[1749921267364,0.21895483,104750.0,104740.0,0.45485824]
[1749921267572,0.21895474,104750.0,104740.0,0.45485824]
[1749921268216,0.21002375,104750.0,104740.0,0.46440532]
[1749921268663,0.21895476,104750.0,104740.0,0.46440532]
[1749921268875,0.20940832,104750.0,104740.0,0.0335]
[1749921269074,0.24030832,104750.0,104740.0,0.16368]
[1749921269307,0.58030832,104750.0,104740.0,0.002]
[1749921269513,0.60310642,104750.0,104740.0,0.16368]
[1749921270361,0.60310642,104750.0,104740.0,0.002]
[1749921270556,0.72315564,104750.0,104740.0,0.002]
[1749921270763,0.62700642,104750.0,104740.0,0.002]
[1749921270899,0.62700597,104750.0,104740.0,0.002]
[1749921271508,0.54049627,104740.0,104730.0,0.40324268]
[1749921271708,0.54942683,104740.0,104730.0,0.00047757]
[1749921271908,0.65302048,104740.0,104730.0,0.00047757]
[1749921272905,0.65302048,104740.0,104730.0,0.00247757]
[1749921273163,0.6530076,104740.0,104730.0,0.00247757]
[1749921273320,0.65300798,104740.0,104730.0,0.00247757]
[1749921273959,0.60267073,104740.0,104730.0,0.00247757]
[1749921275499,0.5798144,104740.0,104730.0,0.00247757]
[1749921275842,0.60264876,104740.0,104730.0,0.00247757]
[1749921276070,0.57224876,104740.0,104730.0,0.00247757]
[1749921276290,0.54941441,104740.0,104730.0,0.03397757]
[1749921278118,0.54940959,104740.0,104730.0,0.03397757]
[1749921278351,0.54940958,104740.0,104730.0,0.03397757]
[1749921278561,0.54940958,104740.0,104730.0,0.04352593]
[1749921278771,0.53094901,104740.0,104730.0,0.04352593]
[1749921279008,0.53986236,104740.0,104730.0,0.04352593]
[1749921279545,0.53986236,104740.0,104730.0,0.03397757]
[1749921280380,0.53986454,104740.0,104730.0,0.03397757]
[1749921281612,0.53986455,104740.0,104730.0,0.03397757]
[1749921284799,0.5398648,104740.0,104730.0,0.03397757]
[1749921286294,0.53986645,104740.0,104730.0,0.03397757]
[1749921286713,0.56269493,104740.0,104730.0,0.03397757]
[1749921287377,0.56269476,104740.0,104730.0,0.03397757]
[1749921289196,0.56269474,104740.0,104730.0,0.03397757]
[1749921289420,0.53986626,104740.0,104730.0,0.03397757]
[1749921289874,0.53986626,104740.0,104730.0,0.23449317]
[1749921290107,0.53986626,104740.0,104730.0,0.07462593]
[1749921291139,0.53986669,104740.0,104730.0,0.07462593]
[1749921292407,0.53986669,104740.0,104730.0,0.06507757]
[1749921293275,0.53986806,104740.0,104730.0,0.06507757]
[1749921293822,0.53986806,104740.0,104730.0,0.07462593]
[1749921294001,0.53986806,104740.0,104730.0,0.06507757]
[1749921295449,0.53988374,104740.0,104730.0,0.06507757]
[1749921295658,0.53988375,104740.0,104730.0,0.06507757]
[1749921296242,0.53988375,104740.0,104730.0,0.03397757]
[1749921297109,0.53094901,104740.0,104730.0,0.03397757]
[1749921297309,0.53988375,104740.0,104730.0,0.03397757]
[1749921297506,0.53988375,104740.0,104730.0,0.06577757]
[1749921297721,0.53988374,104740.0,104730.0,0.06577757]
[1749921299287,0.53988412,104740.0,104730.0,0.06577757]
[1749921300305,0.53988386,104740.0,104730.0,0.26629317]
[1749921301544,0.53988386,104740.0,104730.0,0.07532593]
[1749921302111,0.53988779,104740.0,104730.0,0.07532593]
[1749921302827,0.53988778,104740.0,104730.0,0.07532593]
[1749921304666,0.53094901,104740.0,104730.0,0.07532593]
[1749921304871,0.53988779,104740.0,104730.0,0.07532593]
[1749921305894,0.53094901,104740.0,104730.0,0.03397757]
[1749921306041,0.53094901,104740.0,104730.0,0.00247757]
[1749921306042,5.80879477,104740.0,104730.0,0.00247757]
[1749921306241,5.83939868,104740.0,104730.0,0.00247757]
[1749921306447,5.81549829,104740.0,104730.0,0.00247757]
[1749921306644,5.68644907,104740.0,104730.0,0.03407757]
[1749921306850,0.38518965,104740.0,104730.0,0.28518906]
[1749921307071,0.37758018,104740.0,104730.0,0.29273678]
[1749921307271,0.57807664,104740.0,104730.0,0.28318906]
[1749921307481,0.57807646,104740.0,104730.0,0.28318906]
[1749921307961,0.34893894,104740.0,104730.0,0.30835381]
[1749921308145,0.35848557,104740.0,104730.0,0.29273678]
[1749921308335,0.36803229,104740.0,104730.0,0.29273678]
[1749921308669,0.04712609,104740.0,104730.0,0.29273678]
[1749921308899,0.0375791,104740.0,104730.0,0.29273678]
[1749921309101,0.03757986,104740.0,104730.0,0.29473678]
[1749921309438,0.02864016,104740.0,104730.0,0.45605678]
[1749921310046,0.03818706,104740.0,104730.0,0.45605678]
[1749921311457,0.02864016,104740.0,104730.0,0.45605678]
[1749921311663,0.01909335,104740.0,104730.0,0.45605678]
[1749921312074,0.00954663,104740.0,104730.0,0.45605678]
[1749921312234,0.01909344,104740.0,104730.0,0.45605678]
[1749921312435,0.55895055,104750.0,104740.0,0.28209025]
[1749921312642,0.56849708,104750.0,104740.0,0.28209025]
[1749921312848,0.37756397,104750.0,104740.0,0.28209025]
[1749921313084,0.38711041,104750.0,104740.0,0.28209025]
[1749921313434,0.39665694,104750.0,104740.0,0.28209025]
[1749921313675,0.38711045,104750.0,104740.0,0.28209025]
[1749921313849,0.36801757,104750.0,104740.0,0.28209025]
[1749921314042,0.37756383,104750.0,104740.0,0.28209025]
[1749921314841,0.36801757,104750.0,104740.0,0.28209025]
[1749921315048,0.37756383,104750.0,104740.0,0.28209025]
[1749921316351,0.36801757,104750.0,104740.0,0.28209025]
[1749921316880,0.37756374,104750.0,104740.0,0.28209025]
[1749921317209,0.35846668,104750.0,104740.0,0.28209025]
[1749921317415,0.36801276,104750.0,104740.0,0.28209025]
[1749921317728,0.37755902,104750.0,104740.0,0.28209025]
[1749921317937,0.36863824,104750.0,104740.0,0.28209025]
[1749921318123,0.37755905,104750.0,104740.0,0.28209025]
[1749921319141,0.36801279,104750.0,104740.0,0.28209025]
[1749921319824,0.34892081,104750.0,104740.0,0.28209025]
[1749921320069,0.35846671,104750.0,104740.0,0.28209025]
[1749921320298,0.37755908,104750.0,104740.0,0.28209025]
[1749921320506,0.16928851,104750.0,104740.0,0.28209025]
[1749921320750,0.02863806,104750.0,104740.0,0.28209025]
[1749921321060,0.01909189,104750.0,104740.0,0.28209025]
[1749921321652,0.0095459,104750.0,104740.0,0.28209025]
[1749921321859,0.01909198,104750.0,104740.0,0.28209025]
[1749921322215,0.0095459,104750.0,104740.0,0.28209025]
[1749921322423,0.01909198,104750.0,104740.0,0.28209025]
[1749921324097,0.0095459,104750.0,104740.0,0.28209025]
[1749921324299,0.01909198,104750.0,104740.0,0.28209025]
[1749921324561,0.0095459,104750.0,104740.0,0.28209025]
[1749921325225,0.0190917,104750.0,104740.0,0.28178962]
[1749921326016,0.02863787,104750.0,104740.0,0.28178962]
[1749921326701,0.24842118,104760.0,104750.0,0.28176929]
[1749921326850,0.2490442,104760.0,104750.0,0.28176929]
[1749921327051,0.2490442,104760.0,104750.0,0.44292929]
[1749921327256,0.25796737,104760.0,104750.0,0.44292929]
[1749921327857,0.26751254,104760.0,104750.0,0.44292929]
[1749921328457,0.25796727,104760.0,104750.0,0.44292929]
[1749921328653,0.27705743,104760.0,104750.0,0.44292929]
[1749921328832,0.27707033,104760.0,104750.0,0.44292929]
[1749921329143,0.26752516,104760.0,104750.0,0.44292929]
[1749921329406,0.27707033,104760.0,104750.0,0.44292929]
[1749921329585,0.27707024,104760.0,104750.0,0.44292929]
[1749921330171,0.26752516,104760.0,104750.0,0.44292929]
[1749921330377,0.25798017,104760.0,104750.0,0.44292929]
[1749921330728,0.24843528,104760.0,104750.0,0.44292929]
[1749921330935,0.05798017,104760.0,104750.0,0.44292929]
[1749921331377,0.04843528,104760.0,104750.0,0.44292929]
[1749921331576,0.03949921,104760.0,104750.0,0.44292929]
[1749921331778,0.0095448,104760.0,104750.0,0.44292929]
[1749921331978,0.01908988,104760.0,104750.0,0.44292929]
[1749921333139,0.0095448,104760.0,104750.0,0.44292929]
[1749921333359,0.01908979,104760.0,104750.0,0.44292929]
[1749921333797,0.0095448,104760.0,104750.0,0.44292929]
[1749921333999,0.01908979,104760.0,104750.0,0.44292929]
[1749921334135,0.0095448,104760.0,104750.0,0.44292929]
[1749921334334,0.01908979,104760.0,104750.0,0.44292929]
[1749921334566,0.0095448,104760.0,104750.0,0.44292929]
[1749921335301,0.03948443,104760.0,104750.0,1.30122844]
[1749921335510,0.59371824,104780.0,104770.0,0.28442737]
[1749921335721,0.38417499,104780.0,104770.0,0.44546737]
[1749921336154,0.35908623,104780.0,104770.0,0.44546737]
[1749921336371,0.3584694,104780.0,104770.0,0.44546737]
[1749921336598,0.36801265,104780.0,104770.0,0.44546737]
[1749921336819,0.36806048,104780.0,104770.0,0.44546737]
[1749921337242,0.40650105,104780.0,104770.0,0.44546737]
[1749921337660,0.42558802,104780.0,104770.0,0.44546737]
[1749921338516,0.05695776,104780.0,104770.0,0.44546737]
[1749921338727,0.07604436,104780.0,104770.0,0.44546737]
[1749921339356,0.05757454,104780.0,104770.0,0.44546737]
[1749921339585,0.0760464,104780.0,104770.0,0.44546737]
[1749921340218,0.06711798,104780.0,104770.0,0.44546737]
[1749921340430,0.0760464,104780.0,104770.0,0.44546737]
[1749921340878,0.08558984,104780.0,104770.0,0.44546737]
[1749921341132,0.07604643,104780.0,104770.0,0.44546737]
[1749921341349,0.08558987,104780.0,104770.0,0.44546737]
[1749921341558,0.06650308,104780.0,104770.0,0.44546737]
[1749921341773,0.07604652,104780.0,104770.0,0.28442737]
[1749921341988,0.09513367,104780.0,104770.0,0.44542737]
[1749921342220,0.30088511,104780.0,104770.0,0.23343895]
[1749921342451,0.30088473,104780.0,104770.0,0.40398348]
[1749921342660,0.30088473,104780.0,104770.0,0.42307209]
[1749921342875,0.30088473,104780.0,104770.0,0.40398348]
[1749921343084,0.25736987,104780.0,104770.0,0.41352774]
[1749921343717,0.25736987,104780.0,104770.0,0.40398348]
[1749921343925,0.25736987,104780.0,104770.0,0.41352792]
[1749921344137,0.25737032,104780.0,104770.0,0.41352792]
[1749921344349,0.25737031,104780.0,104770.0,0.41352792]
[1749921344557,0.25737031,104780.0,104770.0,0.39443895]
[1749921344793,0.24782678,104780.0,104770.0,0.194]
[1749921345018,0.23828316,104780.0,104770.0,0.194]
[1749921345862,0.23828316,104780.0,104770.0,0.20354471]
[1749921346080,0.22936452,104780.0,104770.0,0.39443904]
[1749921346307,0.23828324,104780.0,104770.0,0.40398366]
[1749921346754,0.23828323,104780.0,104770.0,0.40398366]
[1749921346972,0.23828323,104780.0,104770.0,0.41352819]
[1749921347194,0.23828323,104780.0,104770.0,0.44602819]
[1749921347667,0.23828323,104780.0,104770.0,0.45557263]
[1749921347876,0.23828513,104780.0,104770.0,0.45557263]
[1749921348543,0.2573721,104780.0,104770.0,0.45557227]
[1749921348755,0.27645908,104780.0,104770.0,0.46511653]
[1749921349611,0.26691601,104780.0,104770.0,0.44602792]
[1749921350060,0.26691601,104780.0,104770.0,0.45557227]
[1749921352126,0.27645981,104780.0,104770.0,0.46511653]
[1749921352743,0.03990229,104780.0,104770.0,0.46511653]
[1749921352960,0.1165321,104780.0,104770.0,0.45557191]
[1749921353379,0.1165321,104780.0,104770.0,0.46511608]
[1749921355750,0.07662981,104780.0,104770.0,0.46511562]
[1749921356385,0.06708601,104780.0,104770.0,0.46511562]
[1749921357238,0.0575423,104780.0,104770.0,0.46511562]
[1749921359402,0.05754175,104780.0,104770.0,0.46511562]
[1749921359614,0.0479984,104780.0,104770.0,0.46511562]
[1749921359822,0.05754175,104780.0,104770.0,0.46511562]
[1749921360355,0.05754165,104780.0,104770.0,0.46511562]
[1749921360568,0.067085,104780.0,104770.0,0.46511562]
[1749921361538,0.06708509,104780.0,104770.0,0.46511562]
[1749921361914,0.05754165,104780.0,104770.0,0.46511562]
[1749921362088,0.06708509,104780.0,104770.0,0.46511562]
[1749921362263,0.07662862,104780.0,104770.0,0.46511562]
[1749921362619,0.067085,104780.0,104770.0,0.46511562]
[1749921362801,0.04799849,104780.0,104770.0,0.46511562]
[1749921363037,0.03845533,104780.0,104770.0,0.46511562]
[1749921363417,0.41316115,104790.0,104780.0,0.2810067]
[1749921363626,0.61356194,104790.0,104780.0,0.2810067]
[1749921363831,0.44554221,104790.0,104780.0,0.2810067]
[1749921364050,0.61356194,104790.0,104780.0,0.29662373]
[1749921364259,0.39244024,104790.0,104780.0,0.29054986]
[1749921364463,0.37914432,104790.0,104780.0,0.29054986]
[1749921364667,0.43571646,104790.0,104780.0,0.29054986]
[1749921364878,0.45855459,104790.0,104780.0,0.29054986]
[1749921365085,0.46809731,104790.0,104780.0,0.29054986]
[1749921365300,0.46809722,104790.0,104780.0,0.29054986]
[1749921365502,0.46811404,104790.0,104780.0,0.29054986]
[1749921365710,0.44527578,104790.0,104780.0,0.29054986]
[1749921365918,0.44527587,104790.0,104780.0,0.29054986]
[1749921366331,0.45862553,104790.0,104780.0,0.29054986]
[1749921366537,0.46816824,104790.0,104780.0,0.29054986]
[1749921366747,0.11862553,104790.0,104780.0,0.29054986]
[1749921366958,0.12816614,104790.0,104780.0,0.29054986]
[1749921367160,0.10527377,104790.0,104780.0,0.29054986]
[1749921367369,0.11481648,104790.0,104780.0,0.29054986]